fUST/lending_fUST_20250719
["ID","MTS","AMOUNT","RATE_DAILY","PERIOD"]
[373299914,1752934239039,-543.61,0.00017139,2]
[373299915,1752934239049,-460.0,0.00017139,2]
[373299916,1752934239058,-460.0,0.00017139,2]
[373299917,1752934239068,-460.0,0.00017139,2]
[373299918,1752934239078,-460.0,0.00017139,2]
[373299919,1752934239086,-460.0,0.00017139,2]
[373299920,1752934239096,-460.0,0.00017139,2]
[373299921,1752934239106,-460.0,0.00017139,2]
[373299922,1752934239116,-460.0,0.00017139,2]
[373299923,1752934239125,-460.0,0.00017139,2]
[373299924,1752934239134,-460.0,0.00017139,2]
[373299925,1752934239144,-460.0,0.00017139,2]
[373299926,1752934239153,-460.0,0.00017139,2]
[373299927,1752934239163,-460.0,0.0001714,2]
[373299928,1752934239172,-460.0,0.0001714,2]
[373299929,1752934239181,-460.0,0.0001714,2]
[373299930,1752934239191,-473.94054491,0.0001714,2]
[373299931,1752934239201,-460.0,0.0001714,2]
[373299932,1752934239213,-460.0,0.0001714,2]
[373299933,1752934239223,-460.0,0.0001714,2]
[373299934,1752934239233,-460.0,0.0001714,2]
[373299935,1752934239243,-460.0,0.0001714,2]
[373299936,1752934239253,-460.0,0.0001714,2]
[373299937,1752934239263,-460.0,0.0001714,2]
[373299938,1752934239273,-176.63114338,0.0001714,2]
[373299939,1752934239283,-460.0,0.0001714,2]
[373299940,1752934239295,-460.0,0.0001714,2]
[373299941,1752934239304,-460.0,0.0001714,2]
[373299942,1752934239314,-460.0,0.0001714,2]
[373299943,1752934239325,-460.0,0.0001714,2]
[373299944,1752934239334,-460.0,0.0001714,2]
[373299945,1752934239344,-460.0,0.0001714,2]
[373299946,1752934239352,-460.0,0.0001714,2]
[373299947,1752934239362,-460.0,0.0001714,2]
[373299948,1752934239371,-460.0,0.0001714,2]
[373299949,1752934239380,-460.0,0.0001714,2]
[373299950,1752934239390,-460.0,0.0001714,2]
[373299951,1752934239399,-460.0,0.0001714,2]
[373299952,1752934239409,-460.0,0.0001714,2]
[373299953,1752934239419,-460.0,0.0001714,2]
[373299954,1752934239428,-462.85014543,0.0001714,2]
[373299955,1752934239438,-460.0,0.0001714,2]
[373299956,1752934239448,-1565.59,0.0001714,2]
[373299957,1752934239457,-460.0,0.0001714,2]
[373299958,1752934239467,-601.45,0.0001714,2]
[373299959,1752934239476,-1041.66,0.0001714,2]
[373299960,1752934239486,-460.0,0.0001714,2]
[373299961,1752934239495,-460.0,0.0001714,2]
[373299962,1752934239505,-460.0,0.0001714,2]
[373299963,1752934239515,-460.0,0.0001714,2]
[373299964,1752934239524,-460.0,0.0001714,2]
[373299965,1752934239535,-460.0,0.0001714,2]
[373299966,1752934239547,-763.22,0.0001714,2]
[373299967,1752934239560,-460.0,0.0001714,2]
[373299968,1752934239574,-653.17,0.0001714,2]
[373299969,1752934239583,-460.0,0.0001714,2]
[373299970,1752934239594,-460.0,0.0001714,2]
[373299971,1752934239603,-460.0,0.0001714,2]
[373299972,1752934239615,-460.0,0.0001714,2]
[373299973,1752934239625,-851.7,0.0001714,2]
[373299974,1752934239635,-460.0,0.0001714,2]
[373299975,1752934239644,-460.0,0.0001714,2]
[373299976,1752934239654,-240.52609319,0.0001714,2]
[373299977,1752934239664,-676.13,0.0001714,2]
[373299978,1752934239673,-21451.1210745,0.00017141,2]
[373299979,1752934239683,-476.28,0.00017412,2]
[373299980,1752934239693,-599.1,0.00017412,2]
[373299981,1752934239845,-1102.46,0.00017412,2]
[373299982,1752934239855,-826.87,0.00017413,2]
[373299983,1752934239866,-460.0,0.00017413,2]
[373299984,1752934239877,-460.0,0.00017413,2]
[373299985,1752934239887,-200.44819275,0.00017413,2]
[373299986,1752934239898,-460.0,0.00017413,2]
[373299987,1752934239907,-460.0,0.00017413,2]
[373299988,1752934239917,-1435.97,0.00017413,2]
[373299989,1752934239926,-920.23,0.00017413,2]
[373299990,1752934239935,-460.0,0.00017413,2]
[373299991,1752934239945,-460.0,0.00017413,2]
[373299992,1752934239955,-460.0,0.00017413,2]
[373299993,1752934239965,-460.0,0.00017413,2]
[373299994,1752934239976,-2932.88,0.00017413,2]
[373299995,1752934239987,-460.0,0.00017413,2]
[373299996,1752934239998,-460.0,0.00017413,2]
[373299997,1752934240008,-460.0,0.00017413,2]
[373299998,1752934240019,-543.61,0.00017413,2]
[373299999,1752934240029,-460.0,0.00017413,2]
[373300000,1752934240039,-460.0,0.00017413,2]
[373300001,1752934240049,-460.0,0.00017413,2]
[373300002,1752934240058,-460.0,0.00017413,2]
[373300003,1752934240068,-460.0,0.00017413,2]
[373300004,1752934240078,-460.0,0.00017413,2]
[373300005,1752934240088,-460.0,0.00017413,2]
[373300006,1752934240099,-460.0,0.00017413,2]
[373300007,1752934240110,-460.0,0.00017413,2]
[373300008,1752934240119,-460.0,0.00017414,2]
[373300009,1752934240129,-460.0,0.00017414,2]
[373300010,1752934240138,-460.0,0.00017414,2]
[373300011,1752934240148,-460.0,0.00017414,2]
[373300013,1752934240158,-460.0,0.00017414,2]
[373300014,1752934240167,-460.0,0.00017414,2]
[373300015,1752934240177,-460.0,0.00017414,2]
[373300016,1752934240187,-460.0,0.00017414,2]
[373300017,1752934240196,-460.0,0.00017414,2]
[373300018,1752934240206,-1565.59,0.00017414,2]
[373300019,1752934240215,-601.45,0.00017414,2]
[373300020,1752934240224,-460.0,0.00017414,2]
[373300021,1752934240234,-460.0,0.00017414,2]
[373300022,1752934240244,-460.0,0.00017414,2]
[373300023,1752934240253,-460.0,0.00017414,2]
[373300024,1752934240264,-460.0,0.00017414,2]
[373300025,1752934240274,-763.22,0.00017414,2]
[373300026,1752934240283,-460.0,0.00017414,2]
[373300027,1752934240294,-653.17,0.00017414,2]
[373300028,1752934240304,-460.0,0.00017414,2]
[373300029,1752934240314,-460.0,0.00017414,2]
[373300030,1752934240323,-460.0,0.00017414,2]
[373300031,1752934240332,-851.7,0.00017414,2]
[373300032,1752934240342,-460.0,0.00017414,2]
[373300033,1752934240352,-460.0,0.00017414,2]
[373300034,1752934240363,-676.13,0.00017414,2]
[373300035,1752934240373,-476.28,0.00017686,2]
[373300036,1752934240382,-599.1,0.00017686,2]
[373300037,1752934240392,-826.87,0.00017687,2]
[373300038,1752934240402,-460.0,0.00017687,2]
[373300039,1752934240413,-460.0,0.00017687,2]
[373300040,1752934240423,-460.0,0.00017687,2]
[373300041,1752934240433,-460.0,0.00017687,2]
[373300042,1752934240443,-1435.97,0.00017687,2]
[373300043,1752934240452,-920.23,0.00017687,2]
[373300044,1752934240462,-199.12593399,0.00017687,2]
[373300045,1752934240472,-460.0,0.00017687,2]
[373300046,1752934240482,-517.38878987,0.00017687,2]
[373300047,1752934240491,-460.0,0.00017687,2]
[373300048,1752934240503,-2932.88,0.00017687,2]
[373300049,1752934240514,-460.0,0.00017687,2]
[373300050,1752934240524,-460.0,0.00017687,2]
[373300051,1752934240533,-460.0,0.00017687,2]
[373300052,1752934240543,-543.61,0.00017687,2]
[373300053,1752934240556,-460.0,0.00017687,2]
[373300054,1752934240566,-460.0,0.00017687,2]
[373300055,1752934240576,-460.0,0.00017687,2]
[373300056,1752934240585,-460.0,0.00017687,2]
[373300057,1752934240596,-460.0,0.00017687,2]
[373300058,1752934240606,-460.0,0.00017687,2]
[373300059,1752934240617,-460.0,0.00017687,2]
[373300060,1752934240628,-460.0,0.00017687,2]
[373300061,1752934240638,-460.0,0.00017688,2]
[373300062,1752934240648,-460.0,0.00017688,2]
[373300063,1752934240657,-432.34563837,0.00017688,2]
[373300064,1752934240667,-460.0,0.00017688,2]
[373300065,1752934240677,-460.0,0.00017688,2]
[373300066,1752934240687,-460.0,0.00017688,2]
[373300067,1752934240698,-460.0,0.00017688,2]
[373300068,1752934240707,-1565.59,0.00017688,2]
[373300069,1752934240718,-601.45,0.00017688,2]
[373300070,1752934240728,-460.0,0.00017688,2]
[373300071,1752934240738,-460.0,0.00017688,2]
[373300072,1752934240748,-460.0,0.00017688,2]
[373300073,1752934240757,-460.0,0.00017688,2]
[373300074,1752934240767,-763.22,0.00017688,2]
[373300075,1752934240776,-460.0,0.00017688,2]
[373300076,1752934240786,-653.17,0.00017688,2]
[373300077,1752934240796,-240.06681902,0.00017688,2]
[373300078,1752934240805,-460.0,0.00017688,2]
[373300079,1752934240814,-851.7,0.00017688,2]
[373300080,1752934240824,-460.0,0.00017688,2]
[373300081,1752934240834,-460.0,0.00017688,2]
[373300082,1752934240844,-676.13,0.00017688,2]
[373300083,1752934240853,-1041.66,0.00017897,2]
[373300084,1752934240866,-460.0,0.00017898,2]
[373300085,1752934240875,-460.0,0.00017898,2]
[373300086,1752934240895,-1041.66,0.00017898,2]
[373300087,1752934240908,-460.0,0.00017899,2]
[373300088,1752934240918,-460.0,0.00017899,2]
[373300089,1752934240926,-460.0,0.00017899,2]
[373300090,1752934240935,-460.0,0.00017899,2]
[373300091,1752934240944,-570.70372442,0.00017899,2]
[373300092,1752934240954,-460.0,0.00017899,2]
[373300093,1752934240963,-542.52178713,0.00017899,2]
[373300094,1752934240973,-460.0,0.00017899,2]
[373300095,1752934240982,-460.0,0.00017899,2]
[373300096,1752934240992,-476.28,0.0001796,2]
[373300097,1752934241001,-599.1,0.0001796,2]
[373300098,1752934241010,-826.87,0.00017961,2]
[373300099,1752934241018,-460.0,0.00017961,2]
[373300100,1752934241028,-460.0,0.00017961,2]
[373300101,1752934241038,-460.0,0.00017961,2]
[373300102,1752934241047,-460.0,0.00017961,2]
[373300103,1752934241057,-1435.97,0.00017961,2]
[373300104,1752934241067,-920.23,0.00017961,2]
[373300105,1752934241076,-460.0,0.00017961,2]
[373300106,1752934241086,-460.0,0.00017961,2]
[373300107,1752934241099,-2932.88,0.00017961,2]
[373300108,1752934241108,-460.0,0.00017961,2]
[373300109,1752934241121,-460.0,0.00017961,2]
[373300110,1752934241130,-460.0,0.00017961,2]
[373300111,1752934241140,-543.61,0.00017961,2]
[373300112,1752934241150,-460.0,0.00017961,2]
[373300113,1752934241159,-460.0,0.00017961,2]
[373300114,1752934241170,-170.59,0.00017961,2]
[373300115,1752934241179,-460.0,0.00017961,2]
[373300116,1752934241189,-460.0,0.00017961,2]
[373300117,1752934241199,-460.0,0.00017961,2]
[373300118,1752934241208,-460.0,0.00017961,2]
[373300119,1752934241217,-460.0,0.00017961,2]
[373300120,1752934241227,-460.0,0.00017962,2]
[373300121,1752934241237,-344.111953,0.00017962,2]
[373300122,1752934241247,-460.0,0.00017962,2]
[373300123,1752934241257,-460.0,0.00017962,2]
[373300124,1752934241266,-460.0,0.00017962,2]
[373300125,1752934241276,-1565.59,0.00017962,2]
[373300126,1752934241286,-601.45,0.00017962,2]
[373300127,1752934241296,-460.0,0.00017962,2]
[373300128,1752934241306,-460.0,0.00017962,2]
[373300129,1752934241316,-460.0,0.00017962,2]
[373300130,1752934241325,-460.0,0.00017962,2]
[373300131,1752934241334,-763.22,0.00017962,2]
[373300132,1752934241344,-222.2058019,0.00017962,2]
[373300133,1752934241354,-653.17,0.00017962,2]
[373300134,1752934241368,-460.0,0.00017962,2]
[373300135,1752934241378,-851.7,0.00017962,2]
[373300136,1752934241387,-460.0,0.00017962,2]
[373300137,1752934241397,-460.0,0.00017962,2]
[373300138,1752934241407,-676.13,0.00017962,2]
[373300139,1752934241417,-6455.44030131,0.00018002,2]
[373300140,1752934241426,-1041.66,0.00018172,2]
[373300141,1752934241436,-460.0,0.00018173,2]
[373300142,1752934241446,-460.0,0.00018173,2]
[373300143,1752934241456,-460.0,0.00018173,2]
[373300144,1752934241465,-460.0,0.00018173,2]
[373300145,1752934241475,-460.0,0.00018173,2]
[373300146,1752934241485,-460.0,0.00018173,2]
[373300147,1752934241495,-839.454303,0.00018204,2]
[373300148,1752934241505,-160.0,0.00018204,2]
[373300149,1752934241516,-12612.80205064,0.00018204,2]
[373300150,1752934241526,-160.0,0.00018204,2]
[373300151,1752934241536,-215.67360783,0.00018204,2]
[373300152,1752934241548,-160.0,0.00018204,2]
[373300153,1752934241560,-160.0,0.00018204,2]
[373300154,1752934241580,-525.83049785,0.00018204,2]
[373300155,1752934241592,-214.52603969,0.00018204,2]
[373300156,1752934241602,-160.0,0.00018204,2]
[373300157,1752934241612,-230.94145789,0.00018204,2]
[373300158,1752934241624,-476.34170116,0.00018204,2]
[373300159,1752934241634,-460.0,0.00018206,2]
[373300160,1752934241645,-460.0,0.00018206,2]
[373300161,1752934241655,-460.0,0.00018206,2]
[373300162,1752934241666,-1041.66,0.00018206,2]
[373300163,1752934241676,-476.26,0.00018206,2]
[373300164,1752934241686,-486.21870661,0.00018213,2]
[373300165,1752934241695,-476.28,0.00018234,2]
[373300166,1752934241705,-599.1,0.00018234,2]
[373300167,1752934241714,-826.87,0.00018235,2]
[373300168,1752934241724,-249.24,0.00018235,2]
[373300169,1752934241734,-160.0,0.00018235,2]
[373300170,1752934241744,-460.0,0.00018235,2]
[373300171,1752934241754,-460.0,0.00018235,2]
[373300172,1752934241764,-1435.97,0.00018235,2]
[373300173,1752934241774,-920.23,0.00018235,2]
[373300174,1752934241784,-460.0,0.00018235,2]
[373300175,1752934241794,-460.0,0.00018235,2]
[373300176,1752934241804,-2932.88,0.00018235,2]
[373300177,1752934241814,-460.0,0.00018235,2]
[373300178,1752934241824,-460.0,0.00018235,2]
[373300179,1752934241834,-460.0,0.00018235,2]
[373300180,1752934241844,-543.61,0.00018235,2]
[373300181,1752934241853,-460.0,0.00018235,2]
[373300182,1752934241865,-460.0,0.00018235,2]
[373300183,1752934241875,-460.0,0.00018235,2]
[373300184,1752934241885,-460.0,0.00018235,2]
[373300185,1752934241895,-460.0,0.00018235,2]
[373300186,1752934241905,-460.0,0.00018235,2]
[373300187,1752934241915,-460.0,0.00018235,2]
[373300188,1752934241925,-462.87,0.00018236,2]
[373300189,1752934241935,-460.0,0.00018236,2]
[373300190,1752934241944,-460.0,0.00018236,2]
[373300191,1752934241954,-460.0,0.00018236,2]
[373300192,1752934241965,-1565.59,0.00018236,2]
[373300193,1752934241975,-601.45,0.00018236,2]
[373300194,1752934241986,-460.0,0.00018236,2]
[373300195,1752934241995,-460.0,0.00018236,2]
[373300196,1752934242006,-460.0,0.00018236,2]
[373300197,1752934242016,-460.0,0.00018236,2]
[373300198,1752934242026,-763.22,0.00018236,2]
[373300199,1752934242036,-653.17,0.00018236,2]
[373300200,1752934242045,-460.0,0.00018236,2]
[373300201,1752934242055,-851.7,0.00018236,2]
[373300202,1752934242065,-460.0,0.00018236,2]
[373300203,1752934242075,-460.0,0.00018236,2]
[373300204,1752934242085,-676.13,0.00018236,2]
[373300205,1752934242095,-500.0,0.00018366,2]
[373300206,1752934242105,-1041.66,0.00018446,2]
[373300207,1752934242116,-460.0,0.00018447,2]
[373300208,1752934242125,-460.0,0.00018447,2]
[373300209,1752934242135,-460.0,0.00018447,2]
[373300210,1752934242145,-460.0,0.00018447,2]
[373300211,1752934242155,-460.0,0.00018447,2]
[373300212,1752934242165,-460.0,0.00018447,2]
[373300213,1752934242175,-476.26,0.0001848,2]
[373300214,1752934242185,-476.28,0.00018508,2]
[373300215,1752934242195,-599.1,0.00018508,2]
[373300216,1752934242204,-826.87,0.00018509,2]
[373300217,1752934242214,-460.0,0.00018509,2]
[373300218,1752934242224,-460.0,0.00018509,2]
[373300219,1752934242234,-1435.97,0.00018509,2]
[373300220,1752934242244,-920.23,0.00018509,2]
[373300221,1752934242254,-460.0,0.00018509,2]
[373300222,1752934242264,-460.0,0.00018509,2]
[373300223,1752934242274,-2932.88,0.00018509,2]
[373300224,1752934242284,-460.0,0.00018509,2]
[373300225,1752934242294,-531.77478659,0.00018509,2]
[373300226,1752934242304,-460.0,0.00018509,2]
[373300227,1752934242314,-543.61,0.00018509,2]
[373300228,1752934242325,-460.0,0.00018509,2]
[373300229,1752934242335,-460.0,0.00018509,2]
[373300230,1752934242346,-460.0,0.00018509,2]
[373300231,1752934242356,-460.0,0.00018509,2]
[373300232,1752934242367,-169.81,0.00018509,2]
[373300233,1752934242377,-460.0,0.00018509,2]
[373300234,1752934242387,-460.0,0.00018509,2]
[373300235,1752934242397,-460.0,0.0001851,2]
[373300236,1752934242406,-460.0,0.0001851,2]
[373300237,1752934242416,-460.0,0.0001851,2]
[373300238,1752934242427,-1565.59,0.0001851,2]
[373300239,1752934242437,-601.45,0.0001851,2]
[373300240,1752934242447,-460.0,0.0001851,2]
[373300241,1752934242457,-460.0,0.0001851,2]
[373300242,1752934242466,-460.0,0.0001851,2]
[373300243,1752934242477,-495.64,0.0001851,2]
[373300244,1752934242487,-763.22,0.0001851,2]
[373300245,1752934242497,-653.17,0.0001851,2]
[373300246,1752934242507,-460.0,0.0001851,2]
[373300247,1752934242518,-851.7,0.0001851,2]
[373300248,1752934242527,-460.0,0.0001851,2]
[373300249,1752934242537,-460.0,0.0001851,2]
[373300250,1752934242548,-676.13,0.0001851,2]
[373300251,1752934242559,-420.0,0.00018715,2]
[373300252,1752934242568,-232.0,0.00018715,2]
[373300253,1752934242578,-460.0,0.00018721,2]
[373300254,1752934242588,-152.97,0.00018721,2]
[373300255,1752934242599,-460.0,0.00018721,2]
[373300256,1752934242609,-460.0,0.00018721,2]
[373300257,1752934242620,-595.56806391,0.00018721,2]
[373300258,1752934242637,-334.3282315,0.00018721,2]
[373300259,1752934242647,-476.26,0.00018753,2]
[373300260,1752934242657,-476.28,0.00018782,2]
[373300261,1752934242667,-599.1,0.00018782,2]
[373300262,1752934242677,-826.87,0.00018783,2]
[373300263,1752934242687,-1041.66,0.00018783,2]
[373300264,1752934242697,-460.0,0.00018783,2]
[373300265,1752934242707,-367.82,0.00018783,2]
[373300266,1752934242718,-1435.97,0.00018783,2]
[373300267,1752934242729,-920.23,0.00018783,2]
[373300268,1752934242739,-460.0,0.00018783,2]
[373300269,1752934242749,-460.0,0.00018783,2]
[373300270,1752934242759,-2932.88,0.00018783,2]
[373300271,1752934242769,-460.0,0.00018783,2]
[373300272,1752934242779,-460.0,0.00018783,2]
[373300273,1752934242789,-543.61,0.00018783,2]
[373300274,1752934242799,-291.0447832,0.00018783,2]
[373300275,1752934242809,-460.0,0.00018783,2]
[373300276,1752934242819,-460.0,0.00018783,2]
[373300277,1752934242829,-460.0,0.00018783,2]
[373300278,1752934242839,-460.0,0.00018783,2]
[373300279,1752934242849,-460.0,0.00018784,2]
[373300280,1752934242858,-460.0,0.00018784,2]
[373300281,1752934242870,-460.0,0.00018784,2]
[373300282,1752934242880,-1565.59,0.00018784,2]
[373300283,1752934242890,-601.45,0.00018784,2]
[373300284,1752934242900,-460.0,0.00018784,2]
[373300285,1752934242910,-460.0,0.00018784,2]
[373300286,1752934242919,-460.0,0.00018784,2]
[373300287,1752934242929,-763.22,0.00018784,2]
[373300288,1752934242940,-653.17,0.00018784,2]
[373300289,1752934242950,-460.0,0.00018784,2]
[373300290,1752934242960,-851.7,0.00018784,2]
[373300291,1752934242970,-460.0,0.00018784,2]
[373300292,1752934242980,-460.0,0.00018784,2]
[373300293,1752934242989,-676.13,0.00018784,2]
[373300294,1752934242999,-1200.0,0.00018808,2]
[373300295,1752934243009,-500.0,0.00018831,2]
[373300296,1752934243019,-1050.0,0.000189,4]
[373300297,1752934243029,-6614.82604395,0.000189,2]
[373300298,1752934243039,-851.83927804,0.00018914,2]
[373300299,1752934243049,-5868.6006789,0.00018927,2]
[373300300,1752934243059,-460.0,0.00018995,2]
[373300301,1752934243069,-460.0,0.00018995,2]
[373300304,1752934243084,-460.0,0.00018995,2]
[373300306,1752934243094,-476.26,0.00019027,2]
[373300308,1752934243104,-197.29,0.00019031,3]
[373300311,1752934243113,-591.92,0.00019031,3]
[373300313,1752934243124,-1041.66,0.0001904,2]
[373300315,1752934243134,-476.28,0.00019056,2]
[373300317,1752934243144,-599.1,0.00019056,2]
[373300319,1752934243154,-826.87,0.00019057,2]
[373300321,1752934243165,-460.0,0.00019057,2]
[373300323,1752934243175,-1435.97,0.00019057,2]
[373300324,1752934243185,-920.23,0.00019057,2]
[373300326,1752934243195,-460.0,0.00019057,2]
[373300328,1752934243205,-460.0,0.00019057,2]
[373300329,1752934243215,-2932.88,0.00019057,2]
[373300330,1752934243225,-460.0,0.00019057,2]
[373300331,1752934243379,-191.69,0.00019057,2]
[373300332,1752934243404,-543.61,0.00019057,2]
[373300333,1752934243414,-460.0,0.00019057,2]
[373300334,1752934243424,-344.15,0.00019057,2]
[373300335,1752934243433,-460.0,0.00019057,2]
[373300336,1752934243443,-460.0,0.00019057,2]
[373300337,1752934243453,-460.0,0.00019058,2]
[373300338,1752934243462,-151.57,0.00019058,2]
[373300339,1752934243473,-460.0,0.00019058,2]
[373300340,1752934243483,-1565.59,0.00019058,2]
[373300341,1752934243493,-601.45,0.00019058,2]
[373300342,1752934243503,-460.0,0.00019058,2]
[373300343,1752934243513,-460.0,0.00019058,2]
[373300344,1752934243522,-460.0,0.00019058,2]
[373300345,1752934243532,-763.22,0.00019058,2]
[373300346,1752934243542,-653.17,0.00019058,2]
[373300347,1752934243552,-460.0,0.00019058,2]
[373300348,1752934243563,-851.7,0.00019058,2]
[373300349,1752934243573,-460.0,0.00019058,2]
[373300350,1752934243583,-460.0,0.00019058,2]
[373300351,1752934243598,-676.13,0.00019058,2]
[373300352,1752934243613,-394.59,0.00019092,3]
[373300353,1752934243623,-789.17,0.00019102,3]
[373300355,1752934243633,-678.23,0.00019112,3]
[373300357,1752934243643,-1041.66,0.00019121,2]
[373300358,1752934243652,-1041.66,0.00019121,2]
[373300359,1752934243661,-1041.66,0.00019121,2]
[373300360,1752934243671,-1041.66,0.00019121,2]
[373300361,1752934243681,-1041.66,0.00019121,2]
[373300362,1752934243689,-1041.66,0.00019121,2]
[373300363,1752934243696,-1041.66,0.00019121,2]
[373300364,1752934243705,-1041.66,0.00019121,2]
[373300365,1752934243713,-1041.66,0.00019121,2]
[373300366,1752934243722,-1041.66,0.00019121,2]
[373300367,1752934243731,-1041.66,0.00019121,2]
[373300368,1752934243740,-1041.66,0.00019121,2]
[373300369,1752934243750,-1041.66,0.00019121,2]
[373300370,1752934243759,-1041.66,0.00019121,2]
[373300371,1752934243769,-1041.66,0.00019121,2]
[373300372,1752934243778,-1041.82,0.00019121,2]
[373300373,1752934243788,-312373.1895888,0.00019122,2]
[373300374,1752934243797,-6614.82604384,0.00019141,2]
[373300375,1752934243807,-160.0,0.00019162,2]
[373300376,1752934243818,-231.667571,0.00019178,2]
[373300377,1752934243828,-460.0,0.00019269,2]
[373300378,1752934243837,-460.0,0.00019269,2]
[373300379,1752934243847,-460.0,0.00019269,2]
[373300380,1752934243857,-207.4,0.00019273,2]
[373300381,1752934243868,-3801.642,0.00019273,2]
[373300382,1752934243878,-476.26,0.00019301,2]
[373300383,1752934243888,-500.0,0.00019328,2]
[373300384,1752934243898,-1856.7436946,0.00019328,2]
[373300385,1752934243908,-1856.7436946,0.00019328,2]
[373300386,1752934243917,-584.25559907,0.00019328,2]
[373300387,1752934243926,-1856.7436946,0.00019328,2]
[373300388,1752934243935,-1856.7436946,0.00019328,2]
[373300389,1752934243945,-1856.7436946,0.00019328,2]
[373300390,1752934243955,-500.0,0.00019328,2]
[373300391,1752934243965,-1856.7436946,0.00019328,2]
[373300392,1752934243974,-1856.7436946,0.00019328,2]
[373300393,1752934243983,-1856.7436946,0.00019328,2]
[373300394,1752934243992,-1856.7436946,0.00019328,2]
[373300395,1752934244002,-1856.7436946,0.00019328,2]
[373300396,1752934244011,-1856.7436946,0.00019328,2]
[373300397,1752934244021,-1856.7436946,0.00019328,2]
[373300398,1752934244030,-1856.7436946,0.00019328,2]
[373300399,1752934244040,-86629.29424444,0.00019329,2]
[373300400,1752934244049,-476.28,0.0001933,2]
[373300401,1752934244058,-599.1,0.0001933,2]
[373300402,1752934244068,-826.87,0.00019331,2]
[373300403,1752934244077,-232.2658635,0.00019331,2]
[373300404,1752934244087,-1435.97,0.00019331,2]
[373300405,1752934244097,-920.23,0.00019331,2]
[373300406,1752934244106,-460.0,0.00019331,2]
[373300408,1752934244117,-460.0,0.00019331,2]
[373300409,1752934244127,-2932.88,0.00019331,2]
[373300410,1752934244136,-460.0,0.00019331,2]
[373300411,1752934244146,-543.61,0.00019331,2]
[373300412,1752934244155,-460.0,0.00019331,2]
[373300413,1752934244164,-460.0,0.00019331,2]
[373300414,1752934244174,-460.0,0.00019331,2]
[373300416,1752934244183,-460.0,0.00019332,2]
[373300417,1752934244193,-199.14,0.00019332,2]
[373300418,1752934244203,-1565.59,0.00019332,2]
[373300419,1752934244212,-601.45,0.00019332,2]
[373300420,1752934244222,-460.0,0.00019332,2]
[373300421,1752934244231,-460.0,0.00019332,2]
[373300422,1752934244241,-460.0,0.00019332,2]
[373300423,1752934244250,-763.22,0.00019332,2]
[373300424,1752934244260,-653.17,0.00019332,2]
[373300425,1752934244269,-460.0,0.00019332,2]
[373300426,1752934244279,-851.7,0.00019332,2]
[373300427,1752934244288,-460.0,0.00019332,2]
[373300429,1752934244297,-460.0,0.00019332,2]
[373300431,1752934244308,-676.13,0.00019332,2]
[373300432,1752934244317,-500.0,0.00019373,2]
[373300433,1752934244327,-500.0,0.00019373,2]
[373300434,1752934244336,-504.31142319,0.00019373,2]